bitfinex/quotes_SOLUSD_20220208
["timestamp","ask_amount","ask_price","bid_price","bid_amount"]
[1644333625543,41.13770001,111.98,111.87,85.3323909]
[1644333626145,6.0,111.98,111.87,85.3323909]
[1644333626345,2.50468883,112.0,111.87,98.14465821]
[1644333626547,2.53339167,112.01,111.87,111.71898758]
[1644333626846,0.02870284,112.01,111.87,111.71898758]
[1644333627046,0.02870284,112.01,111.88,0.44]
[1644333627247,2.53339167,112.03,111.92,13.3936]
[1644333627447,0.02870284,112.01,111.93,10.78]
[1644333627648,2.50468883,112.04,111.94,10.78]
[1644333627950,2.50468883,112.05,111.94,12.91735769]
[1644333628147,2.50468883,112.05,111.94,1.88735769]
[1644333628353,50.22724923,112.04,111.93,13.3968]
[1644333628648,53.7225604,112.04,111.94,10.78]
[1644333629449,53.7225604,112.04,111.94,24.4253]
[1644333629849,53.7225604,112.04,111.94,24.1753]
[1644333631054,53.7225604,112.04,111.95,1.87811693]
[1644333631250,53.7225604,112.04,111.96,24.1732]
[1644333631651,47.7225604,112.04,111.97,1.87811693]
[1644333631849,47.7225604,112.04,111.98,10.78]
[1644333632249,47.7225604,112.04,111.98,12.65811693]
[1644333632451,47.7225604,112.04,111.98,10.78]
[1644333633050,53.7225604,112.04,111.94,10.78]
[1644333633251,53.7225604,112.04,111.93,10.78]
[1644333633850,67.1221604,112.04,111.93,10.78]
[1644333634054,67.1221604,112.04,111.85,23.9999]
[1644333634251,38.68739506,112.02,111.86,10.78]
[1644333634650,37.91938068,112.0,111.86,10.78]
[1644333634851,47.59040763,111.98,111.86,10.78]
[1644333635252,47.59040763,111.98,111.86,11.03]
[1644333635450,34.18370763,111.98,111.86,12.65811693]
[1644333635650,34.18370763,111.98,111.86,33.76355742]
[1644333635851,34.18370763,111.98,111.86,46.57582473]
[1644333636951,34.18370763,111.98,111.86,59.98052473]
[1644333637152,34.18370763,111.98,111.86,54.23052473]
[1644333637452,34.18370763,111.98,111.86,107.24052473]
[1644333637653,34.18370763,111.98,111.86,122.09735584]
[1644333639655,0.02889668,112.02,111.86,122.09735584]
[1644333640365,0.02889668,112.02,111.91,13.3978]
[1644333640554,0.02889668,112.04,111.92,10.78]
[1644333640756,40.79629129,112.04,111.92,10.78]
[1644333641757,54.19609129,112.04,111.92,10.78]
[1644333641954,54.19609129,112.04,111.88,69.9529]
[1644333642156,40.33655069,112.02,111.89,0.25]
[1644333642357,42.84123952,112.02,111.89,0.25]
[1644333642556,40.33655069,112.02,111.89,0.25]
[1644333643260,40.33655069,112.02,111.88,33.5535]
[1644333643458,40.36544737,112.02,111.88,33.5535]
[1644333643761,13.4043,112.0,111.88,35.42719511]
[1644333643960,37.81955886,111.99,111.88,35.42719511]
[1644333644558,37.81955886,111.99,111.88,50.5326356]
[1644333644760,37.81955886,111.99,111.88,63.34490291]
[1644333644959,37.81955886,111.99,111.88,122.35490291]
[1644333645159,37.81955886,111.99,111.88,69.34490291]
[1644333645560,37.81955886,111.99,111.88,122.35490291]
[1644333645860,37.81955886,111.99,111.88,82.74680291]
[1644333646461,37.81955886,111.99,111.88,76.74680291]
[1644333646659,37.81955886,111.99,111.88,82.74680291]
[1644333647663,37.81955886,111.99,111.88,135.75680291]
[1644333648062,43.81955886,111.99,111.88,144.61363402]
[1644333648265,37.81955886,111.99,111.88,144.61363402]
[1644333649462,2.53358551,112.03,111.88,144.61363402]
[1644333649662,11.02787365,112.03,111.88,144.61363402]
[1644333649863,0.02889668,112.03,111.88,144.36363402]
[1644333650265,5.02749915,112.03,111.88,144.36363402]
[1644333650564,50.3245096,112.03,111.88,144.36363402]
[1644333650764,41.20917262,112.01,111.88,144.36363402]
[1644333650968,41.2380693,112.01,111.88,144.36363402]
[1644333651369,41.2380693,112.01,111.88,91.35363402]
[1644333651567,43.74275813,112.01,111.88,82.49680291]
[1644333651768,43.74275813,112.01,111.88,76.49680291]
[1644333651769,35.49529359,111.99,111.88,76.49680291]
[1644333651969,37.99998242,111.99,111.88,27.7591356]
[1644333652167,37.99998242,111.99,111.88,10.78]
[1644333652568,47.7988787,111.96,111.89,1.87369511]
[1644333652970,47.7988787,111.96,111.88,24.1824]
[1644333653168,47.7988787,111.96,111.89,10.78]
[1644333655570,47.7988787,111.96,111.89,11.03]
[1644333655773,47.7988787,111.96,111.9,1.86928355]
[1644333656872,47.7988787,111.96,111.89,10.78]
[1644333657273,50.30356753,111.96,111.89,10.78]
[1644333657674,47.7988787,111.96,111.89,10.78]
[1644333659877,50.30356753,111.96,111.89,10.78]
[1644333660078,41.94378035,111.94,111.86,378.00750791]
[1644333661601,47.94378035,111.94,111.86,10.78]
[1644333661898,50.44846918,111.94,111.81,10.78]
[1644333662100,52.55622467,111.94,111.81,10.78]
[1644333662298,37.45200178,111.92,111.81,10.78]
[1644333662598,44.06011143,111.9,111.81,10.78]
[1644333662800,44.06011143,111.9,111.76,84.30021156]
[1644333662801,57.47441143,111.9,111.77,24.1959]
[1644333663000,57.47441143,111.9,111.77,10.78]
[1644333663202,4.47,111.89,111.77,10.78]
[1644333663402,43.63987949,111.88,111.77,10.78]
[1644333663809,57.05727949,111.88,111.77,24.1966]
[1644333664099,57.05727949,111.88,111.77,26.06588355]
[1644333664500,69.57527949,111.88,111.77,24.1966]
[1644333664901,69.57527949,111.88,111.77,10.78]
[1644333665401,75.57527949,111.88,111.77,10.78]
[1644333665800,75.57527949,111.88,111.77,12.64928355]
[1644333666002,75.57527949,111.88,111.77,12.89928355]
[1644333666400,62.15787949,111.88,111.77,26.31648355]
[1644333666599,62.15787949,111.88,111.77,40.33009511]
[1644333667000,62.15787949,111.88,111.77,52.98636242]
[1644333667603,62.15787949,111.88,111.77,40.08009511]
[1644333667604,75.57467949,111.88,111.77,40.08009511]
[1644333667901,75.57467949,111.88,111.77,40.33009511]
[1644333668101,62.15787949,111.88,111.77,40.33009511]
[1644333671803,62.15787949,111.88,111.77,40.08009511]
[1644333672704,18.518,111.88,111.77,118.84756242]
[1644333672904,12.518,111.88,111.77,124.84756242]
[1644333673105,12.518,111.88,111.78,7.68467961]
[1644333673307,0.02889668,111.93,111.79,63.79]
[1644333673504,2.50468883,111.97,111.81,66.4181]
[1644333673505,0.02889668,111.95,111.81,66.4181]
[1644333673707,4.98772571,111.97,111.82,10.78]
[1644333673708,0.02889668,111.93,111.82,10.78]
[1644333673906,0.02889668,111.95,111.83,53.01]
[1644333674106,0.02889668,111.95,111.85,53.01]
[1644333674306,36.20190539,111.97,111.86,10.78]
[1644333674510,36.17300871,111.97,111.86,12.64928355]
[1644333674707,36.17300871,111.97,111.87,1.86928355]
[1644333674908,36.17300871,111.97,111.88,10.78]
[1644333675109,36.17300871,111.97,111.9,13.4022]
[1644333675709,36.17300871,111.97,111.9,13.6522]
[1644333677112,36.17300871,111.97,111.9,19.6522]
[1644333677312,36.17300871,111.97,111.9,13.6522]
[1644333677712,36.17300871,111.97,111.9,24.4322]
[1644333680611,36.17300871,111.97,111.9,26.29269505]
[1644333680811,36.17300871,111.97,111.9,24.4322]
[1644333681711,36.17300871,111.97,111.9,24.1822]
[1644333681911,42.17300871,111.97,111.9,24.1822]
[1644333682511,39.67300871,111.97,111.9,24.1822]
[1644333684011,39.67300871,111.97,111.9,10.78]
[1644333684218,39.67300871,111.97,111.88,13.4056]
[1644333684618,53.07830871,111.97,111.88,13.4056]
[1644333686017,53.07830871,111.97,111.87,10.78]
[1644333688020,53.07830871,111.97,111.82,105.85181156]
[1644333688021,2.10775549,111.96,111.82,105.85181156]
[1644333688222,9.07844432,111.96,111.82,4.466]
[1644333688421,13.4152,111.92,111.82,4.466]
[1644333688622,43.36633911,111.91,111.82,4.466]
[1644333689022,43.36633911,111.91,111.8,10.78]
[1644333689825,48.15548649,111.88,111.8,24.4443]
[1644333691028,48.15548649,111.88,111.8,24.1943]
[1644333691831,61.57138649,111.88,111.8,24.1943]
[1644333692035,76.58638649,111.88,111.77,10.78]
[1644333692634,83.16514198,111.88,111.74,10.78]
[1644333693033,83.16514198,111.88,111.71,10.78]
[1644333693236,83.16514198,111.88,111.68,13.17094489]
[1644333693237,13.4304,111.82,111.68,13.17094489]
[1644333693437,34.97635004,111.8,111.68,10.804]
[1644333693639,34.97635004,111.8,111.66,0.024]
[1644333693833,43.92301359,111.78,111.66,0.024]
[1644333694033,43.92301359,111.78,111.66,13.4557]
[1644333694235,43.92301359,111.78,111.67,1.86049505]
[1644333694434,43.92301359,111.78,111.67,0.024]
[1644333694642,57.35631359,111.78,111.65,1.88449505]
[1644333694838,57.35631359,111.78,111.65,0.024]
[1644333694839,4.475,111.77,111.65,0.024]
[1644333695036,46.33633956,111.76,111.64,0.024]
[1644333695237,4.476,111.75,111.64,0.024]
[1644333695438,39.82762826,111.74,111.63,0.024]
[1644333695635,39.82762826,111.74,111.62,1.86049505]
[1644333696038,45.82762826,111.74,111.62,1.86049505]
[1644333696237,68.57512826,111.74,111.62,1.86049505]
[1644333696440,4.477,111.73,111.61,0.024]
[1644333696644,41.48949955,111.72,111.61,0.024]
[1644333697544,45.22444942,111.69,111.59,0.024]
[1644333697745,45.22444942,111.69,111.58,0.024]
[1644333698150,45.22444942,111.69,111.59,1.86049505]
[1644333698645,45.22444942,111.69,111.56,0.024]
[1644333698842,45.22444942,111.69,111.57,15.00743994]
[1644333699042,45.22444942,111.69,111.57,15.03143994]
[1644333699243,45.22444942,111.69,111.58,1.86049505]
[1644333699442,45.22444942,111.69,111.58,12.64049505]
[1644333699844,45.22444942,111.69,111.58,26.07989505]
[1644333700243,13.439,111.72,111.58,26.32989505]
[1644333700445,13.439,111.72,111.59,1.88449505]
[1644333700644,13.788,111.74,111.6,0.024]
[1644333700846,22.7464,111.74,111.62,13.4353]
[1644333701045,9.31,111.74,111.62,13.4353]
[1644333701246,44.26892313,111.73,111.63,1.86049505]
[1644333701845,44.26892313,111.73,111.63,2.11049505]
[1644333702345,44.26892313,111.73,111.64,15.29349505]
[1644333702549,44.26892313,111.73,111.63,0.024]
[1644333702747,44.26892313,111.73,111.63,1.88449505]
[1644333703047,50.26892313,111.73,111.63,0.024]
[1644333705148,52.37667862,111.73,111.63,0.024]
[1644333705553,56.85367862,111.73,111.61,0.024]
[1644333705846,56.85367862,111.73,111.56,57.3412]
[1644333705847,67.63367862,111.73,111.62,0.024]
[1644333706047,61.04892313,111.73,111.57,1.88449505]
[1644333706247,50.26892313,111.73,111.62,1.86049505]
[1644333706746,50.26892313,111.73,111.62,2.13449505]
[1644333707345,50.26892313,111.73,111.62,12.89049505]
[1644333707545,9.31,111.74,111.63,41.19870538]
[1644333707747,9.31,111.74,111.64,10.78]
[1644333707950,6.31,111.74,111.64,40.40550043]
[1644333708153,4.476,111.83,111.65,29.62550043]
[1644333708353,4.474,111.87,111.66,83.9906]
[1644333708556,13.4203,111.87,111.69,0.44]
[1644333708852,13.8268698,111.91,111.73,2.97]
[1644333709047,13.8268698,111.91,111.74,10.78]
[1644333709250,9.3538698,111.91,111.74,15.501]
[1644333709448,46.10046179,111.9,111.74,23.35677768]
[1644333709649,15.27989668,111.94,111.75,13.4178]
[1644333709650,44.28579891,111.88,111.75,13.4178]
[1644333709848,44.28579891,111.88,111.74,12.88577768]
[1644333710049,44.28579891,111.88,111.74,10.78]
[1644333710247,40.23862273,111.86,111.74,10.78]
[1644333710546,14.99948254,111.9,111.74,10.78]
[1644333710749,4.472,112.03,111.75,18.0342057]
[1644333710750,0.02889668,111.95,111.75,18.0342057]
[1644333710947,0.02889668,111.96,111.77,0.44]
[1644333711147,4.49889668,111.98,111.78,10.78]
[1644333711348,4.49889668,111.98,111.79,88.6717]
[1644333711547,43.71692769,111.97,111.79,94.6717]
[1644333711749,43.71692769,111.97,111.79,141.67548723]
[1644333711750,48.20621122,111.95,111.79,141.67548723]
[1644333711950,0.02889668,111.94,111.8,18.0342057]
[1644333712154,0.02889668,111.94,111.81,10.78]
[1644333712354,0.02889668,111.94,111.81,28.8142057]
[1644333712551,0.02889668,111.94,111.82,1.85577768]
[1644333712751,0.02889668,111.94,111.82,12.88577768]
[1644333712952,0.02889668,111.94,111.83,13.4096]
[1644333713153,40.79441122,111.95,111.83,13.4096]
[1644333713357,40.79441122,111.95,111.83,13.6596]
[1644333713553,40.79441122,111.95,111.82,12.63577768]
[1644333713750,40.79441122,111.95,111.82,11.03]
[1644333713952,40.8233079,111.95,111.82,11.03]
[1644333714166,43.43929066,111.93,111.82,10.78]
[1644333714354,34.46117587,111.91,111.78,10.78]
[1644333714653,34.46117587,111.91,111.77,23.5646]
[1644333714854,4.47,111.9,111.77,23.5646]
[1644333715055,36.05411994,111.89,111.78,10.78]
[1644333715255,36.05411994,111.89,111.78,24.1955]
[1644333715859,36.05411994,111.89,111.79,1.85577768]
[1644333716156,36.05411994,111.89,111.78,40.62392802]
[1644333716358,36.05411994,111.89,111.79,1.85577768]
[1644333716559,36.05411994,111.89,111.78,46.62392802]
[1644333717759,14.64551891,111.94,111.78,59.86855135]
[1644333717977,1.23301891,111.94,111.79,0.44]
[1644333718176,0.02889668,111.95,111.8,10.78]
[1644333718380,0.02889668,111.96,111.84,13.4086]
[1644333718575,5.72991559,111.97,111.84,13.4086]
[1644333718776,34.57120218,111.96,111.84,13.6586]
[1644333719175,34.60009886,111.96,111.84,13.4086]
[1644333719376,53.98150218,111.96,111.83,10.78]
[1644333719575,4.468,111.95,111.83,10.78]
[1644333719777,36.33947358,111.94,111.83,11.03]
[1644333722681,13.4134,111.93,111.83,10.78]
[1644333722883,19.4134,111.93,111.82,13.4113]
[1644333723186,40.30304624,111.92,111.8,24.1938]
[1644333723783,53.71854624,111.92,111.77,34.3446]
[1644333723985,60.29630173,111.92,111.77,34.3446]
[1644333724184,72.30932064,111.92,111.74,10.78]
[1644333724384,1.23301891,111.91,111.73,14.74120579]
[1644333724583,51.08118503,111.9,111.72,13.4227]
[1644333724782,10.78,111.89,111.72,13.4227]
[1644333725083,13.4238,111.86,111.71,10.78]
[1644333725383,35.35436045,111.85,111.72,1.85141162]
[1644333725584,35.35436045,111.85,111.71,41.36813973]
[1644333725893,4.472,111.88,111.71,10.78]
[1644333725894,45.17805009,111.83,111.71,10.78]
[1644333727385,56.51505009,111.83,111.71,10.78]
[1644333727585,5.70501891,111.87,111.72,1.85638606]
[1644333727788,1.23301891,111.89,111.73,10.78]
[1644333727984,1.23301891,111.91,111.73,41.19213417]
[1644333728184,1.23301891,111.92,111.74,32.26852023]
[1644333728387,6.0,111.91,111.75,10.78]
[1644333728588,47.26204445,111.9,111.75,49.04852023]
[1644333728789,47.26204445,111.9,111.78,13.4159]
[1644333728986,47.26204445,111.9,111.79,10.78]
[1644333729186,47.26204445,111.9,111.8,10.78]
[1644333729385,53.26204445,111.9,111.8,10.78]
[1644333729587,53.26204445,111.9,111.77,10.78]
[1644333729789,53.26204445,111.9,111.77,11.03]
[1644333729985,53.26204445,111.9,111.77,24.4471]
[1644333729986,66.67864445,111.9,111.77,24.4471]
[1644333730185,47.26204445,111.9,111.77,32.30348606]
[1644333730585,47.26204445,111.9,111.77,24.4471]
[1644333730988,47.26204445,111.9,111.77,26.30348606]
[1644333731387,47.26204445,111.9,111.77,47.04469185]
[1644333732986,47.26204445,111.9,111.77,41.04469185]
[1644333733187,47.26204445,111.9,111.77,47.04469185]
[1644333733591,53.26204445,111.9,111.77,47.04469185]
[1644333734689,47.26204445,111.9,111.77,100.05469185]
[1644333734888,47.26204445,111.9,111.79,0.44]
[1644333735089,47.26204445,111.9,111.8,10.78]
[1644333735288,47.26204445,111.9,111.81,10.78]
[1644333735495,47.26204445,111.9,111.83,13.4105]
[1644333735991,47.26204445,111.9,111.81,10.78]
[1644333736193,47.26204445,111.9,111.81,11.03]
[1644333736391,53.26204445,111.9,111.81,11.03]
[1644333736591,53.26204445,111.9,111.81,24.4425]
[1644333736891,47.26204445,111.9,111.81,41.04009185]
[1644333737491,47.26204445,111.9,111.81,47.04009185]
[1644333737892,47.26204445,111.9,111.81,26.29888606]
[1644333738895,47.26204445,111.9,111.81,24.4425]
[1644333739096,53.26204445,111.9,111.81,10.78]
[1644333739295,54.49506336,111.9,111.81,10.78]
[1644333739499,48.63436195,111.88,111.81,10.78]
[1644333739894,49.86738086,111.88,111.81,10.78]
[1644333740495,49.36738086,111.88,111.81,10.78]
[1644333741000,49.36738086,111.88,111.79,13.4151]
[1644333741205,49.36738086,111.88,111.77,24.1976]
[1644333741206,1.23301891,111.87,111.77,24.1976]
[1644333741398,39.50961188,111.86,111.77,24.1976]
[1644333741597,40.74263079,111.86,111.77,10.78]
[1644333743704,54.16373079,111.86,111.77,10.78]
[1644333743901,60.16373079,111.86,111.77,10.78]
[1644333744903,60.16373079,111.86,111.74,59.4902]
[1644333745102,1.23301891,111.85,111.74,59.7402]
[1644333745303,43.23131543,111.84,111.74,59.7402]
[1644333745703,43.23131543,111.84,111.74,35.6162]
[1644333745904,44.46433434,111.84,111.74,35.6162]
[1644333746103,52.49433434,111.84,111.74,35.6162]
[1644333746705,51.26131543,111.84,111.74,37.47258606]
[1644333747004,51.26131543,111.84,111.74,52.21379185]
[1644333747205,43.23131543,111.84,111.74,52.46379185]
[1644333747804,43.23131543,111.84,111.74,35.6162]
[1644333748206,43.23131543,111.84,111.74,37.72258606]
[1644333748406,43.23131543,111.84,111.74,37.47258606]
[1644333748608,0.30274649,111.82,111.72,0.024]
[1644333748809,1.23301891,111.83,111.71,1.85638606]
[1644333749007,53.99977565,111.82,111.72,0.024]
[1644333749209,53.99977565,111.82,111.71,1.85638606]
[1644333749606,52.76675674,111.82,111.71,1.85638606]
[1644333749809,58.76675674,111.82,111.71,15.28068606]
[1644333750007,58.76675674,111.82,111.71,26.06068606]
[1644333750206,58.76675674,111.82,111.71,26.31068606]
[1644333750407,45.34085674,111.82,111.71,26.31068606]
[1644333750608,45.34085674,111.82,111.71,26.06068606]
[1644333751009,45.34085674,111.82,111.71,26.31068606]
[1644333751411,45.34085674,111.82,111.71,26.06068606]
[1644333751650,45.34085674,111.82,111.71,26.31068606]
[1644333752229,45.34085674,111.82,111.71,32.31068606]
[1644333752529,45.34085674,111.82,111.71,26.31068606]
[1644333753932,45.34085674,111.82,111.71,32.31068606]
[1644333754129,45.34085674,111.82,111.71,26.31068606]
[1644333754730,45.34085674,111.82,111.71,32.31068606]
[1644333754930,45.34085674,111.82,111.71,32.06068606]
[1644333755130,45.34085674,111.82,111.71,24.2043]
[1644333755332,45.34085674,111.82,111.71,10.78]
[1644333756833,58.76655674,111.82,111.71,10.78]
[1644333758635,68.93555674,111.82,111.7,13.4511]
[1644333758834,68.93555674,111.82,111.7,13.7011]
[1644333759035,68.93555674,111.82,111.7,24.4811]
[1644333763040,68.93555674,111.82,111.7,24.2311]
[1644333763239,74.64157565,111.82,111.7,0.024]
[1644333763439,74.64157565,111.82,111.69,0.024]
[1644333763440,46.91681541,111.8,111.69,0.024]
[1644333763646,44.78676739,111.77,111.69,0.024]
[1644333763841,44.78676739,111.77,111.67,25.52120579]
[1644333764642,58.21826739,111.77,111.67,10.78]
[1644333764842,58.21826739,111.77,111.66,0.024]
[1644333765044,62.69326739,111.77,111.66,0.024]
[1644333766049,62.69326739,111.77,111.66,1.88030037]
[1644333766246,58.21826739,111.77,111.66,1.88030037]
[1644333766446,58.21826739,111.77,111.66,7.88030037]
[1644333766653,58.21826739,111.77,111.66,8.13030037]
[1644333766859,58.21826739,111.77,111.66,7.88030037]
[1644333767053,58.21826739,111.77,111.66,1.88030037]
[1644333767255,64.21826739,111.77,111.66,1.88030037]
[1644333768553,69.9262863,111.77,111.66,0.024]
[1644333768750,1.23301891,111.76,111.64,0.024]
[1644333768950,13.4368,111.73,111.63,13.4594]
[1644333769156,46.21957713,111.72,111.63,13.4594]
[1644333769662,4.477,111.76,111.63,13.4594]
[1644333769850,1.23301891,111.78,111.64,1.85630037]
[1644333770052,13.4335,111.75,111.66,13.4317]
[1644333770651,42.97228634,111.74,111.66,13.6817]
[1644333771757,42.97228634,111.74,111.66,13.4317]
[1644333771952,56.40608634,111.74,111.64,87.12530037]
[1644333772151,56.40608634,111.74,111.64,23.6127]
[1644333772352,60.88208634,111.74,111.63,10.804]
[1644333772653,60.88208634,111.74,111.63,0.024]
[1644333773753,56.40608634,111.74,111.63,0.024]
[1644333774754,56.40608634,111.74,111.63,13.4603]
[1644333774954,56.40608634,111.74,111.63,15.31218874]
[1644333775155,56.40608634,111.74,111.63,15.56218874]
[1644333775955,62.40608634,111.74,111.63,15.56218874]
[1644333776757,62.40608634,111.74,111.63,30.29992787]
[1644333777060,62.40608634,111.74,111.63,41.07992787]
[1644333777257,62.40608634,111.74,111.63,39.22803913]
[1644333777459,62.40608634,111.74,111.63,28.44803913]
[1644333777656,19.4338,111.74,111.63,28.44803913]
[1644333777857,17.9076,111.76,111.64,10.78]
[1644333778058,1.23301891,111.78,111.67,13.4311]
[1644333778259,1.23301891,111.81,111.68,10.78]
[1644333778457,1.23301891,111.82,111.68,25.51773913]
[1644333778657,45.9805994,111.81,111.69,0.024]
[1644333778861,14.66001891,111.8,111.69,0.024]
[1644333779057,37.97773116,111.78,111.67,10.78]
[1644333779258,37.97773116,111.78,111.63,10.804]
[1644333779459,5.70901891,111.77,111.64,0.024]
[1644333779660,45.47939239,111.75,111.64,0.024]
[1644333779857,49.95539239,111.75,111.63,10.78]
[1644333780865,35.8891726,111.71,111.63,24.216]
[1644333781261,35.8891726,111.71,111.63,26.06707584]
[1644333781459,35.8891726,111.71,111.63,12.63107584]
[1644333781658,35.8891726,111.71,111.61,0.024]
[1644333782061,49.3264726,111.71,111.62,13.4381]
[1644333782263,49.3264726,111.71,111.61,0.024]
[1644333782461,35.58137817,111.69,111.59,73.2144]
[1644333782861,35.58137817,111.69,111.59,73.1904]
[1644333783663,39.41867173,111.66,111.59,73.1904]
[1644333783863,39.41867173,111.66,111.58,72.7221]
[1644333784062,39.41867173,111.66,111.57,102.8206]
[1644333784364,39.41867173,111.66,111.57,34.7002]
[1644333784564,39.41867173,111.66,111.57,28.7002]
[1644333784776,52.86237173,111.66,111.57,4.477]
[1644333785392,52.86237173,111.66,111.55,0.024]
[1644333785767,52.86237173,111.66,111.56,1.85107584]
[1644333785967,52.86237173,111.66,111.56,15.29647584]
[1644333788068,52.86237173,111.66,111.55,10.804]
[1644333788269,52.86237173,111.66,111.55,0.024]
[1644333788469,57.34237173,111.66,111.55,0.024]
[1644333788668,13.4515,111.62,111.53,0.024]
[1644333788868,34.64388742,111.61,111.53,0.024]
[1644333789069,34.64388742,111.61,111.52,113.43680124]
[1644333790168,40.64388742,111.61,111.52,113.43680124]
[1644333790771,42.63363092,111.59,111.49,78.21124561]
[1644333790972,42.63363092,111.59,111.47,33.6332]
[1644333791172,42.63363092,111.59,111.47,24.70475588]
[1644333791769,13.455,111.56,111.48,13.4547]
[1644333791971,41.29372745,111.55,111.48,13.4547]
[1644333792171,41.29372745,111.55,111.48,15.30625588]
[1644333792771,41.29372745,111.55,111.48,15.55625588]
[1644333794471,41.29372745,111.55,111.48,26.33625588]
[1644333795070,41.29372745,111.55,111.48,26.08625588]
[1644333795274,41.29372745,111.55,111.47,22.8532]
[1644333795471,41.29372745,111.55,111.46,26.08869606]
[1644333795671,47.29372745,111.55,111.46,16.78]
[1644333796171,60.75052745,111.55,111.46,16.78]
[1644333796372,47.29372745,111.55,111.46,32.08397397]
[1644333796571,41.29372745,111.55,111.46,32.08397397]
[1644333796772,41.29372745,111.55,111.46,32.33397397]
[1644333796973,41.29372745,111.55,111.46,32.08397397]
[1644333798582,41.29372745,111.55,111.46,32.33397397]
[1644333798782,41.29372745,111.55,111.46,32.08397397]
[1644333800801,54.75092745,111.55,111.46,19.4565]
[1644333801002,60.75092745,111.55,111.46,19.4565]
[1644333804508,60.75092745,111.55,111.45,100.3272]
[1644333804710,68.75292745,111.55,111.44,10.78]
[1644333804904,68.75292745,111.55,111.43,46.0546]
[1644333805112,68.75292745,111.55,111.43,52.0546]
[1644333805314,68.75292745,111.55,111.43,53.90220539]
[1644333805907,68.75292745,111.55,111.43,64.68220539]
[1644333806307,60.75092745,111.55,111.43,58.93220539]
[1644333806809,47.29372745,111.55,111.43,152.78669512]
[1644333807008,41.29372745,111.55,111.43,163.27069512]
[1644333807211,16.49701891,111.65,111.44,57.494]
[1644333807410,10.78,111.65,111.46,53.01]
[1644333807609,4.482,111.64,111.47,58.0615]
[1644333807810,44.8395,111.62,111.5,13.4499]
[1644333808019,17.9315,111.61,111.5,10.78]
[1644333808213,41.43857753,111.6,111.5,10.78]
[1644333808815,52.61957753,111.6,111.5,10.78]
[1644333809015,13.4536,111.58,111.49,0.024]
[1644333809216,42.18301735,111.57,111.47,47.2815]
[1644333809617,42.18301735,111.57,111.47,0.024]
[1644333809817,42.18301735,111.57,111.46,85.0322]
[1644333810724,13.4566,111.56,111.46,98.488]
[1644333810917,41.69007135,111.55,111.46,98.488]
[1644333811817,55.14757135,111.55,111.46,85.0322]
[1644333812019,55.14757135,111.55,111.46,10.78]
[1644333813233,55.14757135,111.55,111.45,23.681]
[1644333813424,55.14757135,111.55,111.44,0.024]
[1644333814227,61.14757135,111.55,111.44,0.024]
[1644333814422,61.14757135,111.55,111.44,1.87670049]
[1644333814624,61.14757135,111.55,111.44,15.3072174]
[1644333814824,55.14757135,111.55,111.44,26.3372174]
[1644333815023,55.14757135,111.55,111.44,39.7956174]
[1644333815725,55.14757135,111.55,111.44,39.5456174]
[1644333816527,61.14757135,111.55,111.44,39.5456174]
[1644333816726,61.14757135,111.55,111.44,39.7956174]
[1644333817326,61.14757135,111.55,111.44,26.36510049]
[1644333817526,61.14757135,111.55,111.44,26.11510049]
[1644333817726,61.14757135,111.55,111.44,24.5124]
[1644333817927,61.14757135,111.55,111.44,27.61506978]
[1644333818626,61.14757135,111.55,111.45,1.25430454]
[1644333818827,55.14757135,111.55,111.46,13.4563]
[1644333819228,41.69007135,111.55,111.46,13.7063]
[1644333819527,41.69007135,111.55,111.46,25.74060454]
[1644333819726,4.484,111.59,111.46,27.58896978]
[1644333819927,46.07751891,111.61,111.49,13.4523]
[1644333820127,44.8445,111.61,111.49,13.4523]
[1644333820327,44.8445,111.61,111.49,15.30066524]
[1644333820530,44.8445,111.61,111.49,13.4763]
[1644333820732,48.51031137,111.6,111.49,13.4763]
[1644333820932,54.22533028,111.6,111.49,13.4763]
[1644333821332,52.99231137,111.6,111.49,13.4763]
[1644333821731,35.97793076,111.58,111.49,13.4763]
[1644333822428,41.97793076,111.58,111.49,13.4763]
[1644333822630,4.482,111.6,111.5,10.78]
[1644333822929,5.71501891,111.63,111.53,13.4485]
[1644333823128,7.23301891,111.63,111.53,13.4485]
[1644333823329,46.06571891,111.64,111.53,13.4485]
[1644333823531,52.06571891,111.64,111.53,13.4485]